bitfinex/quotes_SOLUSD_20250403
["timestamp","ask_amount","ask_price","bid_price","bid_amount"]
[1743660613108,39.76235628,119.14,119.13,0.063]
[1743660613907,20.82838428,119.14,119.13,0.063]
[1743660614109,82.1,119.15,119.13,0.063]
[1743660614413,12.43498428,119.14,119.13,0.063]
[1743660614583,39.76235628,119.14,119.13,0.063]
[1743660615508,41.86114478,119.14,119.13,0.063]
[1743660616191,14.53377278,119.14,119.13,0.063]
[1743660616697,22.92717278,119.14,119.13,0.063]
[1743660616908,20.82838428,119.14,119.13,0.063]
[1743660617915,12.43498428,119.14,119.13,0.063]
[1743660618815,82.1,119.15,119.13,0.063]
[1743660619001,94.39282271,119.15,119.13,0.063]
[1743660619905,12.29282271,119.15,119.13,0.063]
[1743660621013,26.0,119.14,119.13,0.063]
[1743660621817,12.29282271,119.15,119.13,0.063]
[1743660621989,94.39282271,119.18,119.14,8.3934]
[1743660622316,20.68302271,119.19,119.14,20.68622271]
[1743660622684,7.48216157,119.2,119.15,12.29282271]
[1743660622685,0.14216157,119.2,119.15,12.29282271]
[1743660622922,12.43498428,119.2,119.15,12.29282271]
[1743660623097,20.82418428,119.2,119.15,12.29282271]
[1743660623994,20.82418428,119.2,119.15,20.68532271]
[1743660624303,12.29282271,119.19,119.15,8.3925]
[1743660624709,12.29282271,119.18,119.13,12.35582271]
[1743660625215,12.29282271,119.18,119.13,20.74962271]
[1743660626094,8.53136157,119.2,119.15,12.29282271]
[1743660626296,20.82418428,119.2,119.15,12.29282271]
[1743660627019,12.43498428,119.2,119.15,12.29282271]
[1743660627623,20.82418428,119.2,119.15,12.29282271]
[1743660628419,12.29282271,119.19,119.15,20.68522271]
[1743660629315,20.82418428,119.2,119.15,20.68522271]
[1743660629719,20.82418428,119.2,119.15,19.22080873]
[1743660629720,27.7521703,119.2,119.15,19.22080873]
[1743660630021,19.3629703,119.2,119.15,19.22080873]
[1743660630621,19.22080873,119.2,119.16,1.6461]
[1743660630825,19.22080873,119.22,119.17,19.22080873]
[1743660631916,19.22080873,119.22,119.18,8.3906]
[1743660632107,27.60860873,119.22,119.18,8.3906]
[1743660632717,19.22080873,119.22,119.18,8.3906]
[1743660633622,27.60870873,119.22,119.18,8.3906]
[1743660633927,27.60870873,119.22,119.17,27.61180873]
[1743660637629,27.63790873,119.23,119.17,27.61180873]
[1743660639825,0.03,119.23,119.2,20.74950873]
[1743660640118,26.03,119.23,119.21,19.22080873]
[1743660641217,23.83,119.23,119.21,19.22080873]
[1743660642409,23.83,119.23,119.2,35.41920873]
[1743660643122,0.03,119.24,119.22,19.22080873]
[1743660643423,0.03,119.23,119.21,19.22080873]
[1743660643620,0.03,119.23,119.2,23.5384]
[1743660643806,0.03,119.23,119.2,15.1497]
[1743660644011,0.03,119.23,119.2,23.5388]
[1743660644804,0.03,119.23,119.2,42.75960873]
[1743660645120,0.03,119.23,119.2,34.37050873]
[1743660645342,0.03,119.23,119.2,42.75970873]
[1743660647226,0.03,119.23,119.2,15.1497]
[1743660647408,0.03,119.23,119.2,7.8097]
[1743660647806,19.25080873,119.23,119.2,7.8097]
[1743660648925,27.63800873,119.23,119.2,7.8097]
[1743660649228,27.63800873,119.23,119.17,35.60080873]
[1743660649714,20.71328834,119.23,119.18,12.29608834]
[1743660650211,20.71328834,119.23,119.18,20.68618834]
[1743660652427,12.29608834,119.22,119.17,23.7199]
[1743660652603,12.29608834,119.21,119.17,23.7201]
[1743660652807,12.29608834,119.21,119.17,15.3288]
[1743660653330,12.29608834,119.21,119.17,23.7201]
[1743660654434,20.68458834,119.21,119.17,23.7201]
[1743660655132,20.68458834,119.21,119.17,23.7831]
[1743660656014,12.29608834,119.21,119.17,16.4431]
[1743660657536,12.29608834,119.22,119.17,16.4431]
[1743660659638,20.68438834,119.22,119.17,16.4431]
[1743660661452,20.68438834,119.22,119.17,8.0518]
[1743660661453,12.29608834,119.21,119.17,8.0518]
[1743660661734,26.0,119.19,119.17,1.5817]
[1743660661925,26.0,119.19,119.17,0.063]
[1743660662135,38.29608834,119.19,119.17,0.063]
[1743660663635,12.29608834,119.18,119.17,0.063]
[1743660663830,40.33202191,119.18,119.17,0.063]
[1743660664323,46.86282191,119.18,119.17,0.063]
[1743660665425,57.35174545,119.18,119.17,0.063]
[1743660667342,139.35174545,119.18,119.17,0.063]
[1743660667549,169.35174545,119.18,119.17,0.063]
[1743660669346,44.933972,119.16,119.15,0.063]
[1743660669524,57.23006034,119.16,119.15,0.063]
[1743660670749,67.72038388,119.16,119.15,0.063]
[1743660671842,67.86254545,119.16,119.15,0.063]
[1743660674550,117.04689881,119.16,119.15,0.063]
[1743660675454,67.86254545,119.16,119.15,0.063]
[1743660676556,65.76422191,119.16,119.15,0.063]
[1743660678350,114.94857527,119.16,119.15,0.063]
[1743660679152,117.04718069,119.16,119.15,0.063]
[1743660680749,67.86282733,119.16,119.15,0.063]
[1743660681131,55.28241585,119.16,119.15,0.063]
[1743660681336,2.09860542,119.16,119.15,0.063]
[1743660681859,94.39608834,119.17,119.15,0.063]
[1743660682059,12.29608834,119.16,119.15,0.063]
[1743660682873,134.12857527,119.16,119.15,0.063]
[1743660683161,108.94857527,119.16,119.15,0.063]
[1743660683338,88.94857527,119.16,119.15,0.063]
[1743660683857,0.14216157,119.15,119.13,0.063]
[1743660684064,64.57006034,119.14,119.13,0.063]
[1743660684751,72.96346034,119.14,119.13,0.063]
[1743660686363,73.10562191,119.14,119.13,0.063]
[1743660686955,75.20469346,119.14,119.13,0.063]
[1743660688464,73.10562191,119.14,119.13,0.063]
[1743660689357,54.17164991,119.14,119.13,0.063]
[1743660691070,46.83164991,119.14,119.13,0.063]
[1743660691457,65.76562191,119.14,119.13,0.063]
[1743660694958,46.83164991,119.14,119.13,0.063]
[1743660695550,48.93056168,119.14,119.13,0.063]
[1743660703581,67.86453368,119.14,119.13,0.063]
[1743660703956,48.93056168,119.14,119.13,0.063]
[1743660705399,36.49231177,119.14,119.13,0.063]
[1743660705684,48.78840011,119.14,119.13,0.063]
[1743660707981,48.93056168,119.14,119.13,0.063]
[1743660713682,67.86453368,119.14,119.13,0.063]
[1743660720668,101.17613357,119.13,119.12,0.063]
[1743660720875,31.37222191,119.13,119.12,0.063]
[1743660721180,39.76632191,119.13,119.12,0.063]
[1743660723183,41.86523368,119.13,119.12,0.063]
[1743660723889,41.58091054,119.13,119.12,0.063]
[1743660724291,41.72307211,119.13,119.12,0.063]
[1743660724477,41.86523368,119.13,119.12,0.063]
[1743660725892,22.93126168,119.13,119.12,0.063]
[1743660726267,41.86523368,119.13,119.12,0.063]
[1743660730383,46.09642279,119.13,119.12,0.063]
[1743660732101,41.86523368,119.13,119.12,0.063]
[1743660732982,22.93126168,119.13,119.12,0.063]
[1743660733910,41.86523368,119.13,119.12,0.063]
[1743660736311,123.96523368,119.13,119.12,0.063]
[1743660742101,105.03126168,119.13,119.12,0.063]
[1743660747405,22.78910011,119.13,119.12,0.063]
[1743660749610,14.39500011,119.13,119.12,0.063]
[1743660749910,12.29608834,119.13,119.12,0.063]
[1743660752104,8.4238,119.14,119.12,0.063]
[1743660752305,20.71988834,119.14,119.12,0.063]
[1743660753312,0.03,119.14,119.12,12.35908834]
[1743660753706,0.03,119.14,119.13,1.5981]
[1743660755820,0.03,119.14,119.13,22.28828834]
[1743660756019,0.03,119.15,119.13,28.53428834]
[1743660756396,0.03,119.15,119.14,12.29608834]
[1743660757795,0.03,119.15,119.14,20.68948834]
[1743660758001,0.03,119.15,119.14,22.25538834]
[1743660758597,0.03,119.23,119.17,6.3467]
[1743660758803,0.03,119.23,119.2,13.81038834]
[1743660759005,30.0,119.21,119.2,1.5143]
[1743660759628,0.03,119.23,119.2,1.5143]
[1743660759826,12.32608834,119.23,119.2,1.5143]
[1743660760910,20.71328834,119.23,119.2,1.5143]
[1743660761608,12.32608834,119.23,119.2,1.5143]
[1743660762416,30.0,119.21,119.2,1.5143]
[1743660765124,30.0,119.21,119.2,9.9035]
[1743660765319,30.0,119.21,119.2,1.5143]
[1743660767032,30.0,119.21,119.17,335.2983]
[1743660767033,42.29608834,119.21,119.17,335.2983]
[1743660767235,50.68458834,119.21,119.17,335.2983]
[1743660767729,12.29608834,119.19,119.17,335.2983]
[1743660768030,12.29608834,119.19,119.17,328.9516]
[1743660768529,20.68668834,119.19,119.17,328.9516]
[1743660771312,26.0,119.18,119.17,328.9516]
[1743660772228,26.0,119.18,119.17,1.5916]
[1743660780837,26.0,119.18,119.14,34.18918834]
[1743660780838,34.3906,119.18,119.14,34.18918834]
[1743660781041,34.3906,119.18,119.14,35.83648834]
[1743660782941,34.3906,119.18,119.14,7.8271]
[1743660783843,46.68668834,119.18,119.14,7.8271]
[1743660786046,46.68668834,119.18,119.14,7.8901]
[1743660786644,34.3906,119.18,119.14,7.8901]
[1743660786852,34.3906,119.18,119.14,16.2835]
[1743660789629,46.68668834,119.18,119.14,7.8901]
[1743660789830,26.0,119.18,119.14,28.57958834]
[1743660790036,20.68578834,119.2,119.15,12.29608834]
[1743660790648,20.68578834,119.2,119.15,20.68848834]
[1743660791248,8.3897,119.2,119.15,20.68848834]
[1743660791436,20.68578834,119.2,119.15,20.68848834]
[1743660794151,20.68578834,119.2,119.14,28.57928834]
[1743660794152,12.29608834,119.19,119.14,28.57928834]
[1743660795466,20.68638834,119.19,119.14,28.57928834]
[1743660796453,20.68568834,119.2,119.15,12.29608834]
[1743660796657,20.68568834,119.2,119.14,28.57928834]
[1743660797148,12.29608834,119.19,119.14,28.57928834]
[1743660797453,20.71638834,119.19,119.14,16.2832]
[1743660798034,20.71638834,119.19,119.14,7.8901]
[1743660799053,20.71638834,119.19,119.14,28.57938834]
[1743660801054,12.29608834,119.17,119.14,1.7103]
[1743660801255,12.29608834,119.17,119.14,0.063]
[1743660801946,20.68808834,119.17,119.14,0.063]
[1743660803762,8.392,119.17,119.14,0.063]
[1743660804061,20.68808834,119.17,119.14,0.063]
[1743660808261,8.392,119.17,119.14,0.063]
[1743660808459,20.68808834,119.17,119.14,0.063]
[1743660811260,0.03,119.19,119.14,0.063]
[1743660811574,26.0,119.17,119.15,12.29608834]
[1743660811869,26.0,119.17,119.14,12.35908834]
[1743660812258,26.0,119.17,119.14,20.75208834]
[1743660813868,0.03,119.19,119.16,12.29608834]
[1743660814045,0.03,119.19,119.17,12.29608834]
[1743660814369,27.38,119.19,119.16,12.29608834]
[1743660815172,27.38,119.19,119.16,20.68778834]
[1743660815653,27.38,119.19,119.16,12.29608834]
[1743660815851,27.38,119.19,119.15,28.35808834]
[1743660818971,27.38,119.19,119.15,16.062]
[1743660819167,27.38,119.19,119.15,28.35808834]
[1743660820453,48.06618834,119.19,119.15,7.6696]
[1743660820964,12.29608834,119.18,119.15,7.6696]
[1743660821148,20.68738834,119.17,119.14,0.063]
[1743660821349,8.3913,119.17,119.14,0.063]
[1743660821746,12.29608834,119.16,119.14,0.063]
[1743660822055,12.29608834,119.15,119.14,0.063]
[1743660823069,12.29608834,119.16,119.14,0.063]
[1743660823756,12.29608834,119.15,119.14,0.063]
[1743660823958,38.43824991,119.15,119.14,0.063]
[1743660824971,46.83094991,119.15,119.14,0.063]
[1743660825268,38.29608834,119.15,119.14,0.063]
[1743660825485,26.0,119.15,119.14,0.063]
[1743660826166,121.77608834,119.19,119.14,13.92458834]
[1743660826366,109.48,119.19,119.15,12.29608834]
[1743660827173,109.48,119.19,119.15,20.68868834]
[1743660827675,130.16608834,119.19,119.14,22.31778834]
[1743660828956,12.29608834,119.18,119.14,10.0217]
[1743660830779,20.68678834,119.18,119.14,1.6285]
[1743660830981,12.29608834,119.17,119.14,1.6285]
[1743660831182,12.29608834,119.17,119.14,0.063]
[1743660831384,20.68778834,119.17,119.14,0.063]
[1743660833070,12.29608834,119.17,119.14,0.063]
[1743660833478,20.71708834,119.18,119.14,0.063]
[1743660834176,12.29608834,119.17,119.14,0.063]
[1743660834575,12.29608834,119.16,119.14,0.063]
[1743660836286,8.4209,119.18,119.14,0.063]
[1743660836595,12.29608834,119.17,119.14,0.063]
[1743660837382,20.68738834,119.17,119.14,0.063]
[1743660837980,26.0,119.15,119.14,0.063]
[1743660838576,12.29608834,119.17,119.14,0.063]
[1743660838886,12.32608834,119.18,119.14,0.063]
[1743660839186,26.0,119.17,119.14,12.35908834]
[1743660839364,26.0,119.17,119.14,20.75188834]
[1743660842382,26.0,119.17,119.14,8.4558]
[1743660843083,38.29608834,119.17,119.14,0.063]
[1743660843284,38.32608834,119.17,119.14,0.063]
[1743660844677,46.71768834,119.17,119.14,0.063]
[1743660846390,38.32608834,119.17,119.14,0.063]
[1743660848590,46.71738834,119.17,119.14,0.063]
[1743660848790,12.29608834,119.15,119.14,0.063]
[1743660850084,20.68878834,119.15,119.14,0.063]
[1743660851381,20.83094991,119.15,119.14,0.063]
[1743660851582,39.76492191,119.15,119.14,0.063]
[1743660854592,20.83094991,119.15,119.14,0.063]
[1743660855303,12.32608834,119.17,119.14,0.063]
[1743660855478,26.0,119.15,119.14,0.063]
[1743660857195,12.32608834,119.17,119.14,0.063]
[1743660860079,0.03,119.17,119.14,0.063]
[1743660862503,0.03,119.17,119.14,8.4564]
[1743660866080,12.29608834,119.16,119.14,0.063]
[1743660866403,38.29608834,119.15,119.14,0.063]
[1743660874406,46.83094991,119.15,119.14,0.063]
[1743660875911,38.43824991,119.15,119.14,0.063]
[1743660877213,36.98261103,119.15,119.14,0.063]
[1743660883621,28.58991103,119.15,119.14,0.063]
[1743660884822,36.98261103,119.15,119.14,0.063]
[1743660887216,28.58991103,119.15,119.14,0.063]
[1743660887401,16.15166112,119.15,119.14,0.063]
[1743660889627,24.54436112,119.15,119.14,0.063]
[1743660890022,24.57436112,119.15,119.14,0.063]
[1743660892221,16.18166112,119.15,119.14,0.063]
[1743660893006,0.03,119.15,119.14,0.063]
[1743660893402,0.03,119.15,119.14,12.35908834]
[1743660893612,0.03,119.15,119.14,18.39538834]
[1743660894310,0.03,119.15,119.14,26.78878834]
[1743660895224,0.03,119.15,119.14,14.4927]
[1743660901212,0.03,119.15,119.14,6.0993]
[1743660901406,0.03,119.15,119.14,0.063]
[1743660901407,26.03,119.15,119.14,0.063]
[1743660904032,46.71878834,119.15,119.14,0.063]
[1743660904927,34.4227,119.15,119.14,0.063]
[1743660905422,46.71878834,119.15,119.14,0.063]
[1743660906712,65.51059877,119.15,119.14,0.063]
[1743660907238,46.86094991,119.15,119.14,0.063]
[1743660909822,53.49883357,119.15,119.14,0.063]
[1743660910134,65.79492191,119.15,119.14,0.063]
[1743660918828,93.14492191,119.15,119.14,0.063]
[1743660923145,19.07613357,119.14,119.12,0.063]
[1743660923345,19.75824991,119.13,119.12,0.063]
[1743660924328,28.15234991,119.13,119.12,0.063]
[1743660926952,110.25234991,119.13,119.12,0.063]
[1743660932560,109.57023357,119.13,119.12,0.063]
[1743660932736,121.86632191,119.13,119.12,0.063]
[1743660937042,102.93234991,119.13,119.12,0.063]
[1743660937254,82.1,119.13,119.12,0.063]
[1743660937638,94.39608834,119.13,119.12,0.063]
[1743660938647,8.3941,119.13,119.12,0.063]
[1743660938853,20.69018834,119.13,119.12,0.063]
[1743660939863,20.83234991,119.13,119.12,0.063]
[1743660940351,39.76632191,119.13,119.12,0.063]
[1743660944571,121.86632191,119.13,119.12,0.063]
[1743660948368,39.76632191,119.13,119.12,0.063]
[1743660951052,26.28432314,119.1,119.09,0.063]
[1743660951382,38.58041148,119.1,119.09,0.063]
[1743660952271,87.76476484,119.1,119.09,0.063]
[1743660952857,46.97671148,119.1,119.09,0.063]
[1743660953262,65.76852191,119.1,119.09,0.063]
[1743660961361,0.28432314,119.09,119.04,6.1722]
[1743660961678,31.37222191,119.07,119.04,0.063]
[1743660961881,140.79222191,119.06,119.04,0.063]
[1743660962062,74.5207574,119.06,119.04,0.063]
[1743660962258,0.14216157,119.05,119.04,0.063]
[1743660962458,31.37222191,119.05,119.04,0.063]
[1743660963762,80.55657527,119.05,119.04,0.063]
[1743660964483,88.95637527,119.05,119.04,0.063]
[1743660965179,39.07613357,119.04,119.03,0.063]
[1743660965365,31.37222191,119.03,119.02,0.063]
[1743660966586,39.77342191,119.03,119.02,0.063]
[1743660966957,46.43501404,119.03,119.02,0.063]
[1743660967370,39.77342191,119.03,119.02,0.063]
[1743660968892,31.08789877,119.03,119.02,0.063]
[1743660969179,18.79181043,119.03,119.02,0.063]
[1743660969361,31.08789877,119.05,119.02,6.6145]
[1743660969682,26.0,119.03,119.02,6.6145]
[1743660969868,12.29608834,119.04,119.02,6.6145]
[1743660971163,26.0,119.03,119.02,6.6145]
[1743660971865,26.0,119.03,119.02,15.0164]
[1743660972865,12.29608834,119.06,119.03,1.5032]
[1743660973091,26.0,119.04,119.03,1.5032]
[1743660973379,113.18789877,119.07,119.03,1.5032]
[1743660973579,12.29608834,119.06,119.03,1.5032]
[1743660973879,12.29608834,119.07,119.03,1.5032]
[1743660974561,26.0,119.06,119.04,20.69588834]
[1743660975696,26.0,119.07,119.04,20.69588834]
[1743660978085,26.0,119.06,119.04,20.69588834]
[1743660978464,109.17614886,119.1,119.05,12.29608834]
[1743660978465,0.03,119.1,119.05,12.29608834]
[1743660978665,0.03,119.1,119.06,12.29608834]
[1743660979074,26.0,119.08,119.07,6.3256]
[1743660979279,0.03,119.1,119.07,14.7235]
[1743660979679,26.0,119.09,119.08,1.5223]
[1743660982791,57.08789877,119.09,119.05,1.6666]
[1743660983104,12.29608834,119.07,119.05,1.6666]
[1743660983791,20.83614991,119.08,119.05,1.6666]
[1743660983991,26.0,119.06,119.05,1.6666]
[1743660988975,8.4285,119.07,119.05,1.6666]
[1743660989589,26.0,119.06,119.05,1.6666]
[1743660990993,26.0,119.06,119.03,327.663]
[1743660990994,46.69518834,119.06,119.03,327.663]
[1743660993478,31.08789877,119.05,119.03,327.663]
[1743660994779,39.48829877,119.05,119.03,327.663]
[1743660994985,38.29608834,119.04,119.03,327.663]
[1743660996672,65.48839877,119.04,119.03,327.663]
[1743660997072,65.48839877,119.04,119.03,0.063]
[1743660998276,65.77272191,119.04,119.03,0.063]
[1743660999505,39.77272191,119.04,119.03,0.063]
[1743660999675,88.95707527,119.04,119.03,0.063]
[1743661001996,26.14216157,119.01,119.0,0.063]
[1743661002196,64.40789877,119.01,119.0,0.063]
[1743661002676,64.69222191,119.01,119.0,0.063]
[1743661004102,73.09482191,119.01,119.0,0.063]
[1743661005091,26.0,118.98,118.97,0.063]
[1743661005284,31.37222191,118.98,118.97,0.063]
[1743661005890,39.77692191,118.98,118.97,0.063]
[1743661006405,88.96127527,118.98,118.97,0.063]
[1743661006604,95.56745329,118.98,118.97,0.063]
[1743661006903,12.29608834,118.93,118.91,0.063]
[1743661007206,31.08789877,118.94,118.91,8.4727]
[1743661007402,26.0,118.95,118.91,20.76878834]
[1743661007601,26.0,118.95,118.92,12.29608834]
[1743661007988,26.0,118.96,118.94,6.2576]
[1743661008913,38.29608834,118.96,118.91,36.817]
[1743661009206,38.29608834,118.96,118.91,28.08878834]
[1743661009506,38.29608834,118.95,118.91,15.7927]
[1743661009708,26.0,118.95,118.91,28.08878834]
[1743661010009,18.79181043,118.95,118.91,20.76878834]
[1743661010307,31.08789877,118.95,118.91,0.063]
[1743661010800,31.08789877,118.95,118.91,8.4725]
[1743661011713,31.08789877,118.95,118.91,0.063]
[1743661011714,12.29608834,118.94,118.91,0.063]
[1743661012088,31.08789877,118.95,118.91,0.063]
[1743661012690,0.28432314,118.94,118.91,0.063]
[1743661013007,94.68041148,118.94,118.91,0.063]
[1743661013589,94.39608834,118.94,118.91,0.063]
[1743661014127,82.1,118.94,118.91,0.063]
[1743661014427,82.1,118.94,118.91,12.35908834]
[1743661014788,82.1,118.94,118.91,0.063]
[1743661015636,26.0,118.94,118.92,12.29608834]
[1743661015915,26.0,118.94,118.91,12.35908834]
[1743661016219,26.0,118.92,118.91,0.063]
[1743661017207,44.79181043,118.92,118.91,0.063]
[1743661018437,65.49689877,118.92,118.91,0.063]
[1743661021738,65.78122191,118.92,118.91,0.063]
[1743661025018,57.08789877,118.92,118.91,0.063]
[1743661025424,65.49689877,118.92,118.91,0.063]
[1743661025641,65.78122191,118.92,118.91,0.063]
[1743661025839,18.79181043,118.86,118.85,0.063]
[1743661026135,26.0,118.86,118.85,0.063]
[1743661027322,38.29608834,118.86,118.85,0.063]
[1743661027723,26.0,118.86,118.85,0.063]
[1743661029442,57.08789877,118.86,118.85,0.063]
[1743661030931,44.79181043,118.86,118.85,0.063]
[1743661031334,57.08789877,118.86,118.85,0.063]
[1743661032442,57.37222191,118.86,118.85,0.063]
[1743661034437,114.96977527,118.86,118.85,0.063]
[1743661034638,65.78542191,118.86,118.85,0.063]
[1743661034929,57.37222191,118.86,118.85,0.063]
[1743661035350,57.08789877,118.86,118.85,0.063]
[1743661037051,44.79181043,118.86,118.85,0.063]
[1743661037352,57.08789877,118.86,118.85,0.063]
[1743661038452,38.29608834,118.86,118.85,0.063]
[1743661038659,26.0,118.86,118.85,0.063]
[1743661038943,31.37222191,118.86,118.85,0.063]
[1743661039346,90.5113,118.89,118.85,0.063]
[1743661039541,31.08789877,118.87,118.85,0.063]
[1743661040840,31.08789877,118.86,118.85,0.063]
[1743661042754,31.37222191,118.86,118.85,0.063]
[1743661042945,39.78542191,118.86,118.85,0.063]
[1743661046463,31.37222191,118.86,118.85,0.063]
[1743661047050,39.78542191,118.86,118.85,0.063]
[1743661047246,82.1,118.9,118.85,0.063]
[1743661047448,18.79181043,118.89,118.85,0.063]
[1743661047646,26.0,118.86,118.85,0.063]
[1743661048249,26.0,118.86,118.85,8.4769]
[1743661048757,82.1,118.9,118.85,20.77298834]
[1743661048938,82.1,118.9,118.86,12.29608834]
[1743661049458,94.39608834,118.9,118.85,41.80788834]
[1743661049655,101.41866848,118.9,118.85,48.83046848]
[1743661050675,82.1,118.9,118.86,19.31866848]
[1743661052962,82.1,118.9,118.87,8.4125]
[1743661053172,38.11047891,118.91,118.87,8.4125]
[1743661053339,19.31866848,118.9,118.87,8.4125]
[1743661054340,38.11047891,118.91,118.87,8.4125]
[1743661055042,18.79181043,118.91,118.87,8.4125]
[1743661055255,38.14047891,118.91,118.87,8.4125]
[1743661055661,19.60299162,118.9,118.86,8.413]
[1743661055861,18.79181043,118.89,118.86,8.413]
[1743661056659,18.79181043,118.89,118.85,8.4766]
[1743661056850,19.46083005,118.89,118.85,8.4766]
[1743661057467,27.87223005,118.89,118.85,0.063]
[1743661057665,37.96831734,118.88,118.85,0.063]
[1743661057856,0.14216157,118.81,118.79,0.063]
[1743661058047,19.46083005,118.81,118.79,0.063]
[1743661058247,26.0,118.8,118.79,0.063]
[1743661058566,26.63866848,118.83,118.79,0.063]
[1743661058747,0.28432314,118.85,118.79,0.063]
[1743661058748,26.0,118.82,118.8,27.19676848]
[1743661058949,82.1,118.87,118.81,19.31866848]
[1743661059155,26.0,118.84,118.81,19.31866848]
[1743661059348,26.0,118.84,118.81,8.4167]
[1743661059549,45.31866848,118.84,118.8,7.8781]
[1743661059761,19.31866848,118.83,118.8,7.8781]
[1743661062355,26.0,118.81,118.8,7.8781]
[1743661062554,26.0,118.8,118.79,0.063]
[1743661063471,19.31866848,118.81,118.79,0.063]
[1743661063866,38.11047891,118.8,118.79,0.063]
[1743661064454,38.39480205,118.8,118.79,0.063]
[1743661065370,18.79181043,118.8,118.79,0.063]
[1743661065572,38.11047891,118.8,118.79,0.063]
[1743661065760,18.79181043,118.8,118.79,0.063]
[1743661065955,38.11047891,118.8,118.79,0.063]
[1743661067878,46.52797891,118.8,118.79,0.063]
[1743661068073,46.81230205,118.8,118.79,0.063]
[1743661070768,66.13097053,118.8,118.79,0.063]
[1743661070973,90.517,118.81,118.79,0.063]
[1743661071175,19.31866848,118.8,118.79,0.063]
[1743661072063,38.11047891,118.8,118.79,0.063]
[1743661072262,57.71347053,118.8,118.79,0.063]
[1743661072882,66.13097053,118.8,118.79,0.063]
[1743661073270,66.13097053,118.8,118.74,0.063]
[1743661073271,0.28432314,118.75,118.74,0.063]
[1743661073585,153.85480205,118.75,118.74,0.063]
[1743661075184,162.27580205,118.75,118.74,0.063]
[1743661075388,71.47047891,118.75,118.74,0.063]
[1743661075577,26.0,118.75,118.74,0.063]
[1743661075761,45.31866848,118.75,118.74,0.063]
[1743661077373,19.31866848,118.77,118.74,0.063]
[1743661077579,19.31866848,118.77,118.74,1.5999]
[1743661077766,26.0,118.76,118.74,1.5999]
[1743661078281,45.31866848,118.76,118.74,1.5999]
[1743661078870,19.31866848,118.76,118.74,1.5999]
[1743661079074,45.31866848,118.76,118.74,1.5999]
[1743661080984,26.0,118.76,118.74,10.0215]
[1743661085463,19.31866848,118.78,118.74,10.0215]
[1743661085665,26.0,118.79,118.76,19.31866848]
[1743661085878,26.0,118.78,118.76,19.31866848]
[1743661086075,26.0,118.77,118.75,19.31866848]
[1743661086685,45.31866848,118.79,118.75,19.31866848]
[1743661086884,45.31866848,118.79,118.74,29.34016848]
[1743661087275,26.0,118.79,118.74,29.34016848]
[1743661087474,45.31866848,118.79,118.74,29.34016848]
[1743661088686,26.0,118.79,118.75,19.31866848]
[1743661088875,45.31866848,118.79,118.74,29.34016848]
[1743661089187,26.0,118.79,118.75,19.31866848]
[1743661089384,8.4445,118.85,118.78,25.79496848]
[1743661090277,19.34866848,118.85,118.8,19.31866848]
[1743661091671,19.34866848,118.85,118.81,8.4167]
[1743661092869,0.03,118.85,118.81,27.73536848]
[1743661093088,0.03,118.85,118.82,19.31866848]
[1743661093386,26.03,118.85,118.83,19.31866848]
[1743661093578,0.03,118.85,118.83,8.4153]
[1743661093974,0.03,118.85,118.83,29.32346848]
[1743661094174,26.03,118.85,118.83,29.32346848]
[1743661094686,0.03,118.85,118.83,29.32346848]
[1743661094885,26.03,118.85,118.83,29.32346848]
[1743661095490,26.03,118.85,118.83,10.0048]
[1743661096969,26.03,118.85,118.83,29.32346848]
[1743661097702,26.03,118.85,118.83,10.0048]